[Event "HUN-ch Rapid 2019"]
[Site "Ajka"]
[Date "2019.07.20"]
[Round "5.7"]
[White "Horvath, Peter"]
[Black "Emodi, Barnabas"]
[Result "1-0"]
[ECO "A46"]
[WhiteElo "2418"]
[BlackElo "2365"]
[Annotator "NA"]
[PlyCount "76"]
[EventDate "2019.07.18"]
[EventType "swiss"]
[EventCountry "HUN"]
[SourceTitle "playchess.com"]
[Source "ChessBase"]
[SourceQuality "1"]
[TimeControl "1200+5"]

1. d4 {[%emt 0:03:32]} Nf6 {[%emt 0:00:10]} 2. Nf3 {[%emt 0:00:04]} e6 {[%emt 0:00:07]} 3. Bg5 {[%emt 0:00:03]} c5 {[%emt 0:00:12]} 4. e3 {[%emt 0:00:02]} Qb6 {[%emt 0:00:08]} 5. Qc1 {[%emt 0:00:35]} Ne4 {[%emt 0:00:10]} 6. Bh4 {[%emt 0:00:36]} d5 {[%emt 0:00:15]} 7. c3 {[%emt 0:00:16]} Nc6 {[%emt 0:00:18]} 8. Bd3 {[%emt 0:00:26]} f5 {[%emt 0:00:28]} 9. O-O {[%emt 0:00:47]} Bd6 {[%emt 0:01:26]} 10. Bg3 {[%emt 0:01:24]} Bxg3 {[%emt 0:00:44]} 11. hxg3 {[%emt 0:00:02]} O-O {[%emt 0:00:05]} 12. Nbd2 {[%emt 0:00:25]} Bd7 {[%emt 0:00:34]} 13. Rb1 {[%emt 0:00:46]} Rac8 {[%emt 0:01:10]} 14. Qd1 {[%emt 0:00:05]} Be8 {[%emt 0:03:22]} 15. Bc2 {[%emt 0:00:15]} Bh5 {[%emt 0:00:17]} 16. Ba4 {[%emt 0:00:11]} Qa6 {[%emt 0:03:30]} 17. Bxc6 {[%emt 0:00:56]} bxc6 {[%emt 0:00:10]} 18. Qc2 {[%emt 0:01:32]} Nxd2 {[%emt 0:00:16]} 19. Qxd2 {[%emt 0:00:02]} Bxf3 {[%emt 0:00:08]} 20. gxf3 {[%emt 0:00:02]} Qb6 {[%emt 0:03:09]} 21. b4 {[%emt 0:01:23]} c4 {[%emt 0:00:20]} 22. a4 {[%emt 0:01:45]} Rf7 {[%emt 0:00:18]} 23. Kg2 {[%emt 0:00:08]} Rb7 {[%emt 0:00:17]} 24. e4 {[%emt 0:00:32]} fxe4 {[%emt 0:01:04]} 25. fxe4 {[%emt 0:00:02]} Qd8 {[%emt 0:00:15]} 26. Rbe1 {[%emt 0:00:33]} a5 {[%emt 0:00:08]} 27. bxa5 {[%emt 0:00:17]} Qxa5 {[%emt 0:00:05]} 28. Re3 {[%emt 0:00:15]} Qxa4 {[%emt 0:00:35]} 29. exd5 {[%emt 0:00:16]} exd5 {[%emt 0:00:02]} 30. Rfe1 {[%emt 0:00:07]} Rf8 {[%emt 0:00:16]} 31. Re8 {[%emt 0:00:54]} Rbf7 {[%emt 0:00:14]} 32. Rxf8+ {[%emt 0:00:12]} Rxf8 {[%emt 0:00:02]} 33. Re7 {[%emt 0:00:06]} Rf7 {[%emt 0:00:16]} 34. Re8+ {[%emt 0:00:19]} Rf8 {[%emt 0:00:01]} 35. Qe3 {[%emt 0:00:14]} Qa7 {[%emt 0:00:57]} 36. Re7 {[%emt 0:00:31]} Qa2 {[%emt 0:00:09]} 37. Qe6+ {[%emt 0:00:20]} Kh8 {[%emt 0:00:06]} 38. Qf7 {[%emt 0:00:34]} Qa3 1-0

[Event "HUN-ch Rapid 2019"]
[Site "Ajka"]
[Date "2019.07.20"]
[Round "5.11"]
[White "Videki, Sandor"]
[Black "Akots, Gabor"]
[Result "1-0"]
[ECO "A25"]
[WhiteElo "2401"]
[BlackElo "2238"]
[Annotator "NA"]
[PlyCount "56"]
[EventDate "2019.07.18"]
[EventType "swiss"]
[EventCountry "HUN"]
[SourceTitle "playchess.com"]
[Source "ChessBase"]
[SourceQuality "1"]
[TimeControl "1200+5"]

1. c4 {[%emt 0:00:01]} e5 {[%emt 0:00:07]} 2. Nc3 {[%emt 0:00:03]} Nc6 {[%emt 0:00:07]} 3. g3 {[%emt 0:00:04]} Bc5 {[%emt 0:00:05]} 4. Bg2 {[%emt 0:00:20]} d6 {[%emt 0:00:02]} 5. e3 {[%emt 0:00:29]} a6 {[%emt 0:00:02]} 6. Nge2 {[%emt 0:00:05]} Ba7 {[%emt 0:00:01]} 7. O-O {[%emt 0:01:11]} h5 {[%emt 0:00:01]} 8. d4 {[%emt 0:01:13]} h4 {[%emt 0:01:57]} 9. b4 {[%emt 0:02:54]} hxg3 {[%emt 0:01:47]} 10. fxg3 {[%emt 0:00:23]} Bg4 {[%emt 0:05:41]} 11. c5 {[%emt 0:00:34]} Nf6 {[%emt 0:01:09]} 12. Nd5 {[%emt 0:05:40]} Nxd5 {[%emt 0:04:16]} 13. Bxd5 {[%emt 0:00:02]} f5 {[%emt 0:00:37]} 14. Rf2 {[%emt 0:01:36]} Qd7 {[%emt 0:04:00]} 15. Qb3 {[%emt 0:00:53]} Nd8 {[%emt 0:00:01]} 16. dxe5 {[%emt 0:00:42]} dxc5 {[%emt 0:00:24]} 17. Ba3 {[%emt 0:00:41]} c6 {[%emt 0:00:12]} 18. Bg2 {[%emt 0:00:24]} Qe6 {[%emt 0:00:34]} 19. bxc5 {[%emt 0:00:24]} Qxb3 {[%emt 0:00:20]} 20. axb3 {[%emt 0:00:01]} Ne6 {[%emt 0:00:01]} 21. b4 {[%emt 0:01:38]} Bxe2 {[%emt 0:00:03]} 22. Rxe2 {[%emt 0:00:03]} a5 {[%emt 0:00:00]} 23. Rc1 {[%emt 0:01:13]} axb4 {[%emt 0:00:05]} 24. Bxb4 {[%emt 0:00:01]} O-O {[%emt 0:00:03]} 25. Rd2 {[%emt 0:00:13]} Bb8 {[%emt 0:00:17]} 26. Rd7 {[%emt 0:00:05]} Bxe5 {[%emt 0:00:12]} 27. Rxb7 Ra4 {[%emt 0:00:05]} 28. Bxc6 {[%emt 0:00:09]} Kh7 {[%emt 0:00:04]} 1-0

[Event "HUN-ch Rapid 2019"]
[Site "Ajka"]
[Date "2019.07.20"]
[Round "5.12"]
[White "Sardy, Peter"]
[Black "Farago, Ivan"]
[Result "0-1"]
[ECO "A13"]
[WhiteElo "2353"]
[BlackElo "2350"]
[Annotator "NA"]
[PlyCount "64"]
[EventDate "2019.07.18"]
[EventType "swiss"]
[EventCountry "HUN"]
[SourceTitle "playchess.com"]
[Source "ChessBase"]
[SourceQuality "1"]
[TimeControl "1200+5"]

1. Nf3 {[%emt 0:00:06]} Nf6 {[%emt 0:00:03]} 2. c4 {[%emt 0:00:13]} e6 {[%emt 0:00:03]} 3. g3 {[%emt 0:00:03]} d5 {[%emt 0:00:06]} 4. Bg2 {[%emt 0:00:04]} dxc4 {[%emt 0:00:06]} 5. Na3 {[%emt 0:00:38]} Bxa3 {[%emt 0:00:39]} 6. bxa3 {[%emt 0:00:02]} Nc6 {[%emt 0:00:08]} 7. O-O {[%emt 0:00:31]} O-O {[%emt 0:00:03]} 8. Bb2 {[%emt 0:00:11]} Re8 {[%emt 0:00:11]} 9. Rc1 {[%emt 0:01:10]} e5 {[%emt 0:00:05]} 10. Rxc4 {[%emt 0:00:45]} Qd6 {[%emt 0:00:35]} 11. Qc1 {[%emt 0:01:47]} Bd7 {[%emt 0:00:52]} 12. d3 {[%emt 0:02:53]} h6 {[%emt 0:00:11]} 13. Nd2 {[%emt 0:01:37]} Rad8 {[%emt 0:00:46]} 14. Nb3 {[%emt 0:01:12]} Be6 {[%emt 0:00:23]} 15. Rh4 {[%emt 0:00:35]} Bd5 {[%emt 0:00:13]} 16. Nc5 {[%emt 0:03:04]} Bxg2 {[%emt 0:00:28]} 17. Kxg2 {[%emt 0:00:51]} Nd4 {[%emt 0:00:23]} 18. Re1 {[%emt 0:01:13]} b6 {[%emt 0:00:18]} 19. Ne4 {[%emt 0:00:15]} Nxe4 {[%emt 0:00:13]} 20. dxe4 {[%emt 0:00:07]} c5 {[%emt 0:00:35]} 21. f4 {[%emt 0:00:51]} exf4 {[%emt 0:00:30]} 22. Rxf4 {[%emt 0:00:20]} Rxe4 {[%emt 0:00:29]} 23. Rxe4 {[%emt 0:00:46]} Qc6 {[%emt 0:00:01]} 24. Qf4 {[%emt 0:00:11]} Re8 {[%emt 0:00:11]} 25. Bxd4 {[%emt 0:00:14]} Rxe4 {[%emt 0:00:13]} 26. Qf3 {[%emt 0:00:17]} cxd4 {[%emt 0:00:10]} 27. Kf1 {[%emt 0:00:28]} Qe6 {[%emt 0:03:44]} 28. Rd1 {[%emt 0:00:28]} Re3 {[%emt 0:01:00]} 29. Qa8+ {[%emt 0:00:12]} Kh7 {[%emt 0:00:01]} 30. Rxd4 {[%emt 0:00:16]} Rxe2 {[%emt 0:00:22]} 31. Qf3 {[%emt 0:00:07]} Rxh2 {[%emt 0:00:41]} 32. Re4 {[%emt 0:00:43]} Qd5 {[%emt 0:00:52]} 0-1

[Event "HUN-ch Rapid 2019"]
[Site "Ajka"]
[Date "2019.07.20"]
[Round "5.14"]
[White "Finszter, Mate"]
[Black "Popovics, Adam"]
[Result "0-1"]
[ECO "A06"]
[WhiteElo "2276"]
[BlackElo "2365"]
[Annotator "NA"]
[PlyCount "108"]
[EventDate "2019.07.18"]
[EventType "swiss"]
[EventCountry "HUN"]
[SourceTitle "playchess.com"]
[Source "ChessBase"]
[SourceQuality "1"]
[TimeControl "1200+5"]

1. Nf3 {[%emt 0:00:03]} g6 {[%emt 0:00:19]} 2. g3 {[%emt 0:00:30]} Bg7 {[%emt 0:00:05]} 3. Bg2 {[%emt 0:00:02]} e5 {[%emt 0:00:03]} 4. O-O {[%emt 0:00:10]} d5 {[%emt 0:00:05]} 5. d3 {[%emt 0:00:15]} Ne7 {[%emt 0:00:08]} 6. c4 {[%emt 0:00:28]} dxc4 {[%emt 0:02:15]} 7. dxc4 {[%emt 0:00:44]} O-O {[%emt 0:00:13]} 8. Nc3 {[%emt 0:00:08]} c6 {[%emt 0:00:33]} 9. Bg5 {[%emt 0:02:44]} f6 {[%emt 0:00:10]} 10. Bd2 {[%emt 0:00:34]} Be6 {[%emt 0:00:28]} 11. b3 {[%emt 0:00:22]} h6 {[%emt 0:01:24]} 12. Qc2 {[%emt 0:00:49]} f5 {[%emt 0:01:48]} 13. Rad1 {[%emt 0:00:46]} Qc7 {[%emt 0:00:17]} 14. Bc1 {[%emt 0:01:19]} Rf7 {[%emt 0:03:19]} 15. Ba3 {[%emt 0:00:53]} Qa5 {[%emt 0:00:15]} 16. Bb2 {[%emt 0:00:15]} Nd7 {[%emt 0:00:11]} 17. Rd6 {[%emt 0:01:07]} Nf8 {[%emt 0:00:02]} 18. Rfd1 {[%emt 0:00:33]} Re8 {[%emt 0:00:14]} 19. Na4 {[%emt 0:00:45]} Nc8 {[%emt 0:00:36]} 20. R6d2 {[%emt 0:00:44]} f4 {[%emt 0:00:44]} 21. gxf4 {[%emt 0:03:28]} exf4 {[%emt 0:00:16]} 22. Nd4 {[%emt 0:00:20]} Bg4 {[%emt 0:01:06]} 23. Nf3 {[%emt 0:01:44]} Qh5 {[%emt 0:01:43]} 24. Rd8 {[%emt 0:00:23]} Rxd8 {[%emt 0:01:00]} 25. Rxd8 {[%emt 0:00:02]} Bxf3 {[%emt 0:00:04]} 26. exf3 {[%emt 0:00:31]} Bxb2 {[%emt 0:01:59]} 27. Qxb2 {[%emt 0:00:20]} Qf5 {[%emt 0:00:20]} 28. Nc3 {[%emt 0:00:15]} Ne7 {[%emt 0:01:49]} 29. Ne4 {[%emt 0:00:12]} Kh7 {[%emt 0:00:21]} 30. Nd6 {[%emt 0:00:25]} Qf6 {[%emt 0:00:01]} 31. Qc1 {[%emt 0:00:34]} g5 {[%emt 0:00:25]} 32. Nxf7 {[%emt 0:00:08]} Qxf7 {[%emt 0:00:02]} 33. Bh3 {[%emt 0:00:12]} Nfg6 {[%emt 0:00:02]} 34. Qc2 {[%emt 0:00:07]} h5 {[%emt 0:00:02]} 35. Rd7 {[%emt 0:00:05]} Kh6 {[%emt 0:00:05]} 36. Qe4 {[%emt 0:00:11]} Qf6 {[%emt 0:00:06]} 37. Qe1 {[%emt 0:00:15]} Ne5 {[%emt 0:00:08]} 38. Qd1 {[%emt 0:00:26]} Nxd7 {[%emt 0:00:01]} 39. Qxd7 {[%emt 0:00:04]} Ng6 {[%emt 0:00:01]} 40. Qd1 {[%emt 0:00:09]} Nh4 {[%emt 0:00:03]} 41. Bg2 {[%emt 0:00:06]} Qe6 {[%emt 0:00:04]} 42. h3 {[%emt 0:00:06]} Kg6 {[%emt 0:00:05]} 43. Qd3+ {[%emt 0:00:02]} Nf5 {[%emt 0:00:06]} 44. Qd2 {[%emt 0:00:07]} Qe5 {[%emt 0:00:02]} 45. Kh2 {[%emt 0:00:08]} Nd4 {[%emt 0:00:06]} 46. Qd3+ {[%emt 0:00:02]} Kh6 {[%emt 0:00:02]} 47. Qd2 {[%emt 0:00:04]} b6 {[%emt 0:00:04]} 48. Qd3 {[%emt 0:00:02]} g4 {[%emt 0:00:08]} 49. hxg4 {[%emt 0:00:11]} hxg4 {[%emt 0:00:01]} 50. Qd1 {[%emt 0:00:10]} Ne2 {[%emt 0:00:14]} 51. fxg4 {[%emt 0:00:08]} f3+ {[%emt 0:00:04]} 52. Kh3 {[%emt 0:00:03]} Nf4+ {[%emt 0:00:03]} 53. Kg3 {[%emt 0:00:04]} fxg2 {[%emt 0:00:03]} 54. Qg1 {[%emt 0:00:04]} Ne2+ 0-1

[Event "HUN-ch Rapid 2019"]
[Site "Ajka"]
[Date "2019.07.20"]
[Round "5.15"]
[White "Dankhazi, Andras"]
[Black "Hardicsay, Peter"]
[Result "1/2-1/2"]
[ECO "D71"]
[WhiteElo "2277"]
[BlackElo "2185"]
[Annotator "NA"]
[PlyCount "72"]
[EventDate "2019.07.18"]
[EventType "swiss"]
[EventCountry "HUN"]
[SourceTitle "playchess.com"]
[Source "ChessBase"]
[SourceQuality "1"]
[TimeControl "1200+5"]

1. d4 {[%emt 0:00:03]} Nf6 {[%emt 0:00:08]} 2. c4 {[%emt 0:00:02]} g6 {[%emt 0:00:10]} 3. g3 {[%emt 0:00:04]} d5 {[%emt 0:01:32]} 4. cxd5 {[%emt 0:00:06]} c6 {[%emt 0:01:20]} 5. Bg2 {[%emt 0:04:20]} cxd5 6. Nc3 Bg7 {[%emt 0:00:57]} 7. Nf3 {[%emt 0:00:13]} O-O {[%emt 0:00:33]} 8. Ne5 {[%emt 0:00:09]} Nc6 {[%emt 0:00:38]} 9. Nxc6 {[%emt 0:00:07]} bxc6 {[%emt 0:00:02]} 10. O-O {[%emt 0:00:11]} e5 {[%emt 0:01:40]} 11. dxe5 {[%emt 0:00:47]} Ng4 {[%emt 0:00:06]} 12. Na4 {[%emt 0:02:39]} Nxe5 {[%emt 0:00:22]} 13. Be3 {[%emt 0:00:37]} Re8 {[%emt 0:01:03]} 14. Bd4 {[%emt 0:00:12]} Bf5 {[%emt 0:01:29]} 15. Nc5 {[%emt 0:02:49]} Qe7 {[%emt 0:03:26]} 16. b3 {[%emt 0:02:18]} h5 {[%emt 0:00:35]} 17. Qd2 {[%emt 0:00:55]} Rad8 {[%emt 0:01:00]} 18. Rac1 {[%emt 0:01:00]} Kh7 {[%emt 0:03:05]} 19. Qb2 {[%emt 0:00:45]} f6 {[%emt 0:00:09]} 20. Rfe1 {[%emt 0:00:42]} Qf7 {[%emt 0:00:42]} 21. Rcd1 {[%emt 0:00:12]} Rb8 {[%emt 0:00:32]} 22. Qc3 {[%emt 0:00:13]} Rbc8 {[%emt 0:00:22]} 23. e4 {[%emt 0:00:26]} dxe4 {[%emt 0:00:11]} 24. Nxe4 {[%emt 0:00:05]} Bxe4 {[%emt 0:00:14]} 25. Bxe4 {[%emt 0:00:20]} c5 {[%emt 0:00:19]} 26. Bxe5 {[%emt 0:01:13]} Rxe5 {[%emt 0:00:02]} 27. Bd3 {[%emt 0:00:10]} Rce8 {[%emt 0:00:17]} 28. Bc4 {[%emt 0:00:26]} Rxe1+ 29. Rxe1 Rxe1+ {[%emt 0:00:13]} 30. Qxe1 {[%emt 0:00:01]} Qd7 {[%emt 0:00:03]} 31. Qe4 {[%emt 0:00:18]} f5 {[%emt 0:00:04]} 32. Qa8 {[%emt 0:00:02]} Kh6 {[%emt 0:00:07]} 33. Kg2 {[%emt 0:00:44]} Qe7 {[%emt 0:00:05]} 34. h4 {[%emt 0:00:08]} f4 {[%emt 0:00:07]} 35. Qf3 {[%emt 0:00:16]} fxg3 {[%emt 0:00:03]} 36. fxg3 {[%emt 0:00:01]} Qe5 {[%emt 0:00:08]} 1/2-1/2

[Event "HUN-ch Rapid 2019"]
[Site "Ajka"]
[Date "2019.07.20"]
[Round "5.18"]
[White "Horvath, Tamas"]
[Black "Gaal, Zsoka"]
[Result "1-0"]
[ECO "B40"]
[WhiteElo "2306"]
[BlackElo "2047"]
[Annotator "NA"]
[PlyCount "81"]
[EventDate "2019.07.18"]
[EventType "swiss"]
[EventCountry "HUN"]
[SourceTitle "playchess.com"]
[Source "ChessBase"]
[SourceQuality "1"]
[TimeControl "1200+5"]

1. e4 {[%emt 0:00:05]} c5 {[%emt 0:00:02]} 2. Nf3 {[%emt 0:00:05]} e6 {[%emt 0:00:02]} 3. d3 {[%emt 0:00:09]} d5 {[%emt 0:00:38]} 4. Nbd2 {[%emt 0:00:37]} Nc6 {[%emt 0:00:10]} 5. g3 {[%emt 0:00:04]} Bd6 {[%emt 0:01:18]} 6. Bg2 {[%emt 0:00:10]} Nge7 {[%emt 0:00:07]} 7. O-O {[%emt 0:00:06]} O-O {[%emt 0:00:06]} 8. Qe2 {[%emt 0:00:25]} b5 {[%emt 0:01:49]} 9. Re1 {[%emt 0:01:05]} Bb7 {[%emt 0:00:19]} 10. h4 {[%emt 0:00:46]} c4 {[%emt 0:02:46]} 11. e5 {[%emt 0:03:12]} Bc5 {[%emt 0:00:22]} 12. c3 {[%emt 0:00:45]} Nf5 {[%emt 0:02:03]} 13. d4 {[%emt 0:00:17]} Be7 {[%emt 0:01:00]} 14. Nf1 {[%emt 0:01:01]} b4 {[%emt 0:00:18]} 15. Bg5 {[%emt 0:01:46]} a5 {[%emt 0:01:04]} 16. Bh3 {[%emt 0:00:21]} Bxg5 {[%emt 0:00:37]} 17. hxg5 {[%emt 0:01:01]} Nfe7 {[%emt 0:00:13]} 18. Ne3 {[%emt 0:00:15]} a4 {[%emt 0:00:22]} 19. a3 {[%emt 0:00:04]} bxc3 {[%emt 0:00:22]} 20. bxc3 {[%emt 0:00:02]} Na5 {[%emt 0:00:12]} 21. Kg2 {[%emt 0:00:54]} Nb3 {[%emt 0:00:59]} 22. Ra2 {[%emt 0:00:03]} Ng6 {[%emt 0:00:31]} 23. Rh1 {[%emt 0:00:09]} Qe7 {[%emt 0:00:50]} 24. Ng4 {[%emt 0:00:15]} Rfb8 {[%emt 0:00:14]} 25. Qe3 {[%emt 0:00:03]} Kf8 {[%emt 0:00:34]} 26. Nf6 {[%emt 0:01:22]} gxf6 {[%emt 0:00:25]} 27. gxf6 {[%emt 0:00:02]} Qc7 {[%emt 0:00:08]} 28. Qh6+ {[%emt 0:00:03]} Ke8 {[%emt 0:00:01]} 29. Qxh7 {[%emt 0:00:02]} Nf8 {[%emt 0:01:15]} 30. Qg8 {[%emt 0:00:08]} Kd7 {[%emt 0:01:08]} 31. Qxf7+ {[%emt 0:01:06]} Kc6 {[%emt 0:00:04]} 32. Bxe6 {[%emt 0:01:11]} Qxf7 {[%emt 0:00:24]} 33. Bxf7 {[%emt 0:00:02]} Kd7 {[%emt 0:00:53]} 34. Ng5 {[%emt 0:00:19]} Ra6 {[%emt 0:00:07]} 35. Re1 {[%emt 0:00:25]} Ne6 {[%emt 0:00:43]} 36. Nxe6 {[%emt 0:00:38]} Rxe6 {[%emt 0:00:03]} 37. Bxe6+ {[%emt 0:00:31]} Kxe6 {[%emt 0:00:01]} 38. Rh1 {[%emt 0:00:06]} Bc6 {[%emt 0:00:22]} 39. Rh7 {[%emt 0:00:09]} Nc1 {[%emt 0:00:22]} 40. g4 {[%emt 0:00:48]} Nxa2 {[%emt 0:00:08]} 41. Re7# 1-0

[Event "HUN-ch Rapid 2019"]
[Site "Ajka"]
[Date "2019.07.20"]
[Round "5.19"]
[White "Juhasz, Barbara"]
[Black "Prohaszka, Peter"]
[Result "0-1"]
[ECO "B15"]
[WhiteElo "2171"]
[BlackElo "2598"]
[Annotator "ChessBase"]
[PlyCount "54"]
[EventDate "2019.07.18"]
[EventType "swiss"]
[EventCountry "HUN"]
[SourceTitle "playchess.com"]
[Source "ChessBase"]
[SourceQuality "1"]
[TimeControl "1200+5"]

1. e4 {[%emt 0:00:05]} c6 {[%emt 0:00:01]} 2. d4 {[%emt 0:00:04]} d5 {[%emt 0:00:01]} 3. Nd2 {[%emt 0:00:06]} dxe4 {[%emt 0:00:29]} 4. Nxe4 {[%emt 0:00:03]} Nf6 {[%emt 0:00:20]} 5. Nxf6+ {[%emt 0:00:02]} exf6 {[%emt 0:00:01]} 6. c3 {[%emt 0:00:04]} Bf5 {[%emt 0:00:20]} 7. Ne2 {[%emt 0:00:03]} Bd6 {[%emt 0:00:06]} 8. Ng3 {[%emt 0:00:02]} Qe7+ {[%emt 0:00:28]} 9. Be3 {[%emt 0:02:48]} Be6 {[%emt 0:00:16]} 10. Bd3 {[%emt 0:00:25]} g6 {[%emt 0:00:11]} 11. Ne4 {[%emt 0:02:34]} Bc7 {[%emt 0:01:27]} 12. O-O {[%emt 0:02:57]} Nd7 {[%emt 0:00:02]} 13. Re1 {[%emt 0:00:19]} O-O {[%emt 0:01:01]} 14. Bh6 {[%emt 0:05:51]} Rfe8 {[%emt 0:00:03]} 15. Ng3 {[%emt 0:00:07]} f5 {[%emt 0:02:55]} 16. Qd2 {[%emt 0:00:08]} Qd6 {[%emt 0:02:26]} 17. b3 {[%emt 0:02:24]} Nf6 {[%emt 0:04:01]} 18. Bg5 {[%emt 0:00:16]} Bd7 {[%emt 0:01:01]} 19. f3 {[%emt 0:01:48]} a5 {[%emt 0:01:29]} 20. Nf1 {[%emt 0:00:25]} Nd5 {[%emt 0:00:48]} 21. Rad1 {[%emt 0:00:12]} a4 {[%emt 0:00:26]} 22. Rxe8+ {[%emt 0:00:16]} Rxe8 {[%emt 0:00:04]} 23. bxa4 {[%emt 0:00:15]} Ba5 {[%emt 0:00:13]} 24. Rc1 {[%emt 0:00:17]} Qa3 {[%emt 0:00:40]} 25. Bc4 {[%emt 0:00:18]} Nxc3 {[%emt 0:01:25]} 26. Qc2 {[%emt 0:00:09]} Qxa4 {[%emt 0:00:29]} 27. Qb2 {[%emt 0:00:09]} Qxc4 {[%emt 0:00:05]} 0-1

[Event "HUN-ch Rapid 2019"]
[Site "Ajka"]
[Date "2019.07.20"]
[Round "6.3"]
[White "Jakab, Attila"]
[Black "Balog, Imre"]
[Result "1/2-1/2"]
[ECO "D11"]
[WhiteElo "2377"]
[BlackElo "2566"]
[Annotator "ChessBase"]
[PlyCount "77"]
[EventDate "2019.07.18"]
[EventType "swiss"]
[EventCountry "HUN"]
[SourceTitle "playchess.com"]
[Source "ChessBase"]
[SourceQuality "1"]
[TimeControl "1200+5"]

1. d4 {[%emt 0:00:01]} d5 {[%emt 0:00:03]} 2. c4 {[%emt 0:00:03]} c6 {[%emt 0:00:01]} 3. Nf3 {[%emt 0:00:05]} Nf6 {[%emt 0:00:05]} 4. e3 {[%emt 0:00:10]} g6 {[%emt 0:00:14]} 5. Nc3 {[%emt 0:00:05]} Bg7 {[%emt 0:00:08]} 6. Be2 {[%emt 0:00:05]} O-O {[%emt 0:00:09]} 7. O-O {[%emt 0:00:03]} a6 {[%emt 0:00:05]} 8. b3 {[%emt 0:00:09]} Bf5 {[%emt 0:00:10]} 9. Bb2 {[%emt 0:00:19]} Nbd7 {[%emt 0:00:04]} 10. h3 {[%emt 0:00:08]} Re8 {[%emt 0:00:26]} 11. Re1 {[%emt 0:00:35]} Rc8 {[%emt 0:00:50]} 12. Bd3 {[%emt 0:01:03]} Bxd3 {[%emt 0:00:29]} 13. Qxd3 {[%emt 0:00:02]} e6 {[%emt 0:00:29]} 14. e4 {[%emt 0:01:47]} dxe4 {[%emt 0:01:34]} 15. Nxe4 {[%emt 0:00:02]} Nxe4 {[%emt 0:00:02]} 16. Qxe4 {[%emt 0:00:02]} Qa5 {[%emt 0:00:04]} 17. Re2 {[%emt 0:01:07]} Red8 {[%emt 0:00:27]} 18. Qc2 {[%emt 0:00:37]} c5 {[%emt 0:00:41]} 19. dxc5 {[%emt 0:00:08]} Bxb2 {[%emt 0:02:20]} 20. Qxb2 {[%emt 0:00:02]} Qxc5 {[%emt 0:00:02]} 21. Rd1 {[%emt 0:00:13]} Nb8 {[%emt 0:00:45]} 22. Red2 {[%emt 0:00:48]} Nc6 {[%emt 0:00:01]} 23. Qf6 {[%emt 0:00:18]} Rxd2 {[%emt 0:00:30]} 24. Rxd2 {[%emt 0:00:02]} Qf5 {[%emt 0:00:09]} 25. Qxf5 {[%emt 0:00:29]} gxf5 {[%emt 0:00:02]} 26. Rd7 {[%emt 0:00:17]} b5 {[%emt 0:00:01]} 27. cxb5 {[%emt 0:00:48]} axb5 {[%emt 0:00:00]} 28. Nd4 {[%emt 0:02:40]} Nxd4 {[%emt 0:00:34]} 29. Rxd4 {[%emt 0:00:01]} Rc1+ {[%emt 0:00:03]} 30. Kh2 {[%emt 0:00:02]} Rc2 {[%emt 0:00:03]} 31. f4 {[%emt 0:00:59]} Rxa2 {[%emt 0:00:21]} 32. Rd8+ {[%emt 0:00:02]} Kg7 {[%emt 0:00:01]} 33. Rb8 {[%emt 0:00:01]} h5 {[%emt 0:00:19]} 34. h4 {[%emt 0:00:19]} f6 {[%emt 0:01:15]} 35. Rxb5 {[%emt 0:00:36]} Re2 {[%emt 0:00:01]} 36. Kg3 {[%emt 0:00:49]} e5 {[%emt 0:00:23]} 37. Kf3 {[%emt 0:00:02]} Re1 38. g3 {[%emt 0:00:31]} Kg6 {[%emt 0:00:06]} 39. b4 {[%emt 0:00:35]} 1/2-1/2

[Event "HUN-ch Rapid 2019"]
[Site "Ajka"]
[Date "2019.07.20"]
[Round "6.6"]
[White "Vertetics, Attila"]
[Black "Marosi, Levente"]
[Result "1-0"]
[ECO "A45"]
[WhiteElo "2438"]
[BlackElo "2225"]
[Annotator "NA"]
[PlyCount "89"]
[EventDate "2019.07.18"]
[EventType "swiss"]
[EventCountry "HUN"]
[SourceTitle "playchess.com"]
[Source "ChessBase"]
[SourceQuality "1"]
[TimeControl "1200+5"]

1. d4 {[%emt 0:00:01]} Nf6 {[%emt 0:00:01]} 2. Bg5 {[%emt 0:00:02]} Ne4 {[%emt 0:00:12]} 3. Bf4 {[%emt 0:00:01]} c5 {[%emt 0:00:01]} 4. f3 {[%emt 0:00:05]} Qa5+ {[%emt 0:00:01]} 5. c3 {[%emt 0:00:03]} Nf6 {[%emt 0:00:00]} 6. Nd2 {[%emt 0:00:02]} cxd4 {[%emt 0:00:02]} 7. Nb3 {[%emt 0:00:03]} Qb6 8. Qxd4 {[%emt 0:00:02]} Nc6 {[%emt 0:01:17]} 9. Qxb6 {[%emt 0:00:02]} axb6 {[%emt 0:00:01]} 10. Nd4 {[%emt 0:00:03]} e5 {[%emt 0:00:54]} 11. Nxc6 {[%emt 0:00:02]} exf4 {[%emt 0:00:01]} 12. Nd4 {[%emt 0:00:01]} Bc5 {[%emt 0:00:14]} 13. Nh3 {[%emt 0:00:32]} Bxd4 {[%emt 0:00:56]} 14. cxd4 {[%emt 0:00:02]} Nd5 {[%emt 0:00:01]} 15. g3 {[%emt 0:00:30]} fxg3 {[%emt 0:03:47]} 16. hxg3 {[%emt 0:00:01]} Nb4 {[%emt 0:00:07]} 17. Kd2 {[%emt 0:00:04]} Rxa2 {[%emt 0:00:41]} 18. Rxa2 {[%emt 0:00:01]} Nxa2 {[%emt 0:00:01]} 19. Nf4 {[%emt 0:00:38]} Nb4 {[%emt 0:01:27]} 20. Rh5 {[%emt 0:01:47]} d6 {[%emt 0:00:28]} 21. Rb5 {[%emt 0:00:12]} Nc6 {[%emt 0:00:04]} 22. e3 {[%emt 0:00:07]} Kd8 {[%emt 0:00:55]} 23. Bc4 {[%emt 0:00:48]} f6 {[%emt 0:01:11]} 24. Rxb6 {[%emt 0:01:02]} g5 {[%emt 0:00:39]} 25. Nh5 {[%emt 0:02:23]} Rf8 {[%emt 0:00:26]} 26. Bd3 {[%emt 0:00:21]} h6 {[%emt 0:00:51]} 27. g4 {[%emt 0:00:07]} Kc7 {[%emt 0:01:47]} 28. Rb5 {[%emt 0:00:03]} b6 {[%emt 0:00:20]} 29. Rb3 {[%emt 0:00:09]} d5 {[%emt 0:01:03]} 30. Ng3 {[%emt 0:00:19]} Bd7 {[%emt 0:00:27]} 31. Ra3 {[%emt 0:00:07]} Kb7 {[%emt 0:01:08]} 32. Ra1 {[%emt 0:00:16]} Ne7 {[%emt 0:01:00]} 33. Rh1 {[%emt 0:00:13]} Rh8 {[%emt 0:00:33]} 34. e4 {[%emt 0:03:38]} Kc7 {[%emt 0:01:12]} 35. Ke3 {[%emt 0:00:25]} dxe4 {[%emt 0:00:22]} 36. Bxe4 {[%emt 0:00:16]} Kd6 {[%emt 0:00:07]} 37. Ra1 {[%emt 0:00:21]} Rf8 {[%emt 0:00:24]} 38. Ra6 {[%emt 0:00:28]} Rb8 {[%emt 0:00:10]} 39. Ra7 {[%emt 0:00:06]} Nc8 {[%emt 0:00:06]} 40. Ra3 {[%emt 0:00:58]} Ne7 {[%emt 0:00:01]} 41. Ra6 {[%emt 0:00:03]} Nc8 {[%emt 0:00:00]} 42. Bf5 {[%emt 0:00:04]} Ne7 {[%emt 0:00:25]} 43. Ne4+ {[%emt 0:00:12]} Kc7 {[%emt 0:00:06]} 44. Ra7+ {[%emt 0:00:04]} Rb7 {[%emt 0:00:03]} 45. Rxb7+ {[%emt 0:00:02]} 1-0